[Event "EYCC Open-U16 2019"]
[Site "Bratislava"]
[Date "2019.08.06"]
[Round "5.41"]
[White "Karadzhov, Ivan"]
[Black "Novotny, Martin"]
[Result "1/2-1/2"]
[ECO "A58"]
[WhiteElo "2023"]
[BlackElo "2178"]
[Annotator "NA"]
[PlyCount "104"]
[EventDate "2019.08.02"]
[EventType "swiss"]
[EventCountry "SVK"]
[SourceTitle "playchess.com"]
[Source "ChessBase"]
[SourceQuality "1"]
[TimeControl "40/5400+30:1800+30"]

1. d4 {[%emt 0:00:00]} Nf6 {[%emt 0:00:00]} 2. c4 {[%emt 0:00:00]} c5 {[%emt 0:00:00]} 3. d5 {[%emt 0:00:07]} b5 {[%emt 0:00:00]} 4. cxb5 {[%emt 0:00:07]} a6 {[%emt 0:00:00]} 5. bxa6 {[%emt 0:00:13]} g6 {[%emt 0:00:17]} 6. Nc3 {[%emt 0:00:11]} Bg7 {[%emt 0:00:13]} 7. Nf3 {[%emt 0:00:09]} O-O {[%emt 0:00:40]} 8. e4 {[%emt 0:02:00]} Qa5 {[%emt 0:01:38]} 9. Bd2 {[%emt 0:10:20]} Bxa6 {[%emt 0:02:40]} 10. Bxa6 {[%emt 0:02:29]} Qxa6 {[%emt 0:02:34]} 11. Qe2 {[%emt 0:02:19]} e6 {[%emt 0:07:33]} 12. Qxa6 {[%emt 0:30:28]} Nxa6 {[%emt 0:02:18]} 13. O-O {[%emt 0:04:07]} exd5 {[%emt 0:11:17]} 14. exd5 {[%emt 0:02:28]} Nb4 {[%emt 0:06:08]} 15. d6 {[%emt 0:08:29]} Ra6 {[%emt 0:07:20]} 16. Be3 {[%emt 0:04:42]} Nd3 {[%emt 0:10:33]} 17. Rab1 {[%emt 0:01:34]} Ng4 {[%emt 0:06:38]} 18. Rfd1 {[%emt 0:07:58]} Nxb2 {[%emt 0:10:26]} 19. Rxb2 {[%emt 0:00:14]} Nxe3 {[%emt 0:00:13]} 20. fxe3 {[%emt 0:00:24]} Bxc3 {[%emt 0:00:05]} 21. Rc2 {[%emt 0:02:48]} Bb4 {[%emt 0:04:47]} 22. Ne5 {[%emt 0:01:48]} Rd8 {[%emt 0:02:20]} 23. Rd5 {[%emt 0:06:58]} f6 {[%emt 0:06:14]} 24. Nd3 {[%emt 0:02:12]} Kf7 {[%emt 0:02:37]} 25. Rf2 {[%emt 0:04:55]} Rda8 {[%emt 0:06:14]} 26. Nxb4 {[%emt 0:04:48]} cxb4 {[%emt 0:00:08]} 27. Rd4 {[%emt 0:00:22]} Rxa2 {[%emt 0:00:45]} 28. Rxb4 {[%emt 0:00:35]} Ra1+ {[%emt 0:01:34]} 29. Rf1 {[%emt 0:00:08]} Rxf1+ {[%emt 0:00:10]} 30. Kxf1 {[%emt 0:00:05]} Ra6 {[%emt 0:01:57]} 31. Kf2 {[%emt 0:00:23]} Rxd6 {[%emt 0:00:04]} 32. Kf3 {[%emt 0:00:05]} Rd2 {[%emt 0:01:12]} 33. h3 {[%emt 0:00:27]} Ke6 {[%emt 0:00:57]} 34. Re4+ {[%emt 0:00:21]} Kf7 {[%emt 0:00:41]} 35. Ra4 {[%emt 0:00:15]} f5 {[%emt 0:01:08]} 36. Rb4 {[%emt 0:01:09]} Ke6 {[%emt 0:00:26]} 37. Rb6+ {[%emt 0:00:25]} Ke5 {[%emt 0:01:40]} 38. Rb5+ {[%emt 0:00:39]} d5 {[%emt 0:00:46]} 39. Rb7 {[%emt 0:00:28]} h5 {[%emt 0:00:27]} 40. h4 {[%emt 0:00:00]} Rd3 {[%emt 0:00:00]} 41. Ke2 {[%emt 0:01:55]} Ra3 {[%emt 0:03:13]} 42. Rb6 {[%emt 0:00:50]} Ra4 {[%emt 0:02:12]} 43. Rxg6 {[%emt 0:00:27]} Rxh4 {[%emt 0:00:10]} 44. Kf3 {[%emt 0:01:16]} Rg4 {[%emt 0:10:58]} 45. Rh6 {[%emt 0:00:36]} h4 {[%emt 0:00:30]} 46. Rh8 {[%emt 0:00:17]} d4 {[%emt 0:02:04]} 47. exd4+ {[%emt 0:00:28]} Rxd4 {[%emt 0:01:47]} 48. Re8+ {[%emt 0:00:27]} Kf6 {[%emt 0:00:06]} 49. Rf8+ {[%emt 0:00:09]} Ke6 {[%emt 0:01:58]} 50. Re8+ {[%emt 0:00:13]} Kf7 {[%emt 0:00:05]} 51. Ra8 {[%emt 0:00:07]} Re4 {[%emt 0:02:30]} 52. Ra6 {[%emt 0:00:46]} Kg7 {[%emt 0:01:04] Kxe4} 1/2-1/2

[Event "EYCC Open-U16 2019"]
[Site "Bratislava"]
[Date "2019.08.06"]
[Round "5.42"]
[White "Mica, Marek"]
[Black "Martin Barcelo, Carles"]
[Result "1/2-1/2"]
[ECO "E63"]
[WhiteElo "2222"]
[BlackElo "2012"]
[Annotator "NA"]
[PlyCount "263"]
[EventDate "2019.08.02"]
[EventType "swiss"]
[EventCountry "SVK"]
[SourceTitle "playchess.com"]
[Source "ChessBase"]
[SourceQuality "1"]
[TimeControl "40/5400+30:1800+30"]

1. d4 {[%emt 0:00:00]} Nf6 {[%emt 0:00:00]} 2. Nf3 {[%emt 0:00:00]} g6 {[%emt 0:00:00]} 3. c4 {[%emt 0:00:00]} Bg7 {[%emt 0:00:00]} 4. g3 {[%emt 0:00:02]} O-O {[%emt 0:00:00]} 5. Bg2 {[%emt 0:00:06]} d6 {[%emt 0:00:03]} 6. O-O {[%emt 0:00:10]} Nc6 {[%emt 0:00:30]} 7. Nc3 {[%emt 0:00:12]} a6 {[%emt 0:00:04]} 8. h3 {[%emt 0:00:13]} Bd7 {[%emt 0:00:46]} 9. e4 {[%emt 0:00:19]} e5 {[%emt 0:00:38]} 10. dxe5 {[%emt 0:00:25]} Nxe5 {[%emt 0:03:12]} 11. Nxe5 {[%emt 0:00:18]} dxe5 {[%emt 0:00:09]} 12. Bg5 {[%emt 0:00:20]} h6 {[%emt 0:06:39]} 13. Be3 {[%emt 0:00:22]} Be6 {[%emt 0:20:12]} 14. Qe2 {[%emt 0:01:13]} Qc8 {[%emt 0:01:25]} 15. Kh2 {[%emt 0:00:21]} Nd7 {[%emt 0:03:41]} 16. Nd5 {[%emt 0:08:23]} Kh7 {[%emt 0:04:11]} 17. f4 {[%emt 0:11:04]} exf4 {[%emt 0:23:05]} 18. gxf4 {[%emt 0:02:20]} c6 {[%emt 0:06:54]} 19. Rac1 {[%emt 0:08:22]} Qb8 {[%emt 0:08:09]} 20. Nb4 {[%emt 0:13:45]} f5 {[%emt 0:03:19]} 21. e5 {[%emt 0:00:47]} Nxe5 {[%emt 0:09:48]} 22. Bc5 {[%emt 0:16:28]} Bxc4 {[%emt 0:02:02]} 23. Rxc4 {[%emt 0:00:23]} Re8 {[%emt 0:00:20]} 24. Rc2 {[%emt 0:13:37]} Ng4+ {[%emt 0:03:01]} 25. hxg4 {[%emt 0:00:10]} Rxe2 {[%emt 0:00:03]} 26. Rxe2 {[%emt 0:00:06]} a5 {[%emt 0:02:09]} 27. Nc2 {[%emt 0:04:13]} Bf8 {[%emt 0:01:58]} 28. Bxf8 {[%emt 0:04:27]} Qxf8 {[%emt 0:00:02]} 29. gxf5 {[%emt 0:00:12]} Qxf5 {[%emt 0:00:51]} 30. Bh3 {[%emt 0:00:42]} Qd3 {[%emt 0:00:57]} 31. Rff2 {[%emt 0:02:32]} Rf8 {[%emt 0:00:26]} 32. Rd2 {[%emt 0:03:26]} Qe4 {[%emt 0:00:31]} 33. Rd4 {[%emt 0:00:40]} Qe8 {[%emt 0:00:43]} 34. Rfd2 {[%emt 0:09:14]} Kh8 {[%emt 0:00:25]} 35. Bg4 {[%emt 0:01:19]} c5 {[%emt 0:00:29]} 36. Re2 {[%emt 0:00:50]} Qxe2+ {[%emt 0:00:37]} 37. Bxe2 {[%emt 0:00:09]} cxd4 {[%emt 0:00:03]} 38. Nxd4 {[%emt 0:00:26]} Rxf4 {[%emt 0:00:17]} 39. Nf3 {[%emt 0:00:05]} Rb4 {[%emt 0:00:33]} 40. b3 {[%emt 0:00:00]} a4 {[%emt 0:00:00]} 41. Bc4 {[%emt 0:01:52]} axb3 {[%emt 0:08:16]} 42. axb3 {[%emt 0:00:08]} Rb6 {[%emt 0:02:47]} 43. Kg3 {[%emt 0:00:34]} Kg7 {[%emt 0:00:32]} 44. Ne5 {[%emt 0:00:44]} Rf6 {[%emt 0:02:32]} 45. Nd3 {[%emt 0:03:00]} h5 {[%emt 0:07:29]} 46. Nc5 {[%emt 0:00:33]} b6 {[%emt 0:00:19]} 47. Ne4 {[%emt 0:01:23]} Rf5 {[%emt 0:02:03]} 48. Nd6 {[%emt 0:00:59]} Rf8 {[%emt 0:00:35]} 49. Ne4 {[%emt 0:01:32]} Kh6 {[%emt 0:00:30]} 50. Nd6 {[%emt 0:04:30]} Rf6 {[%emt 0:08:46]} 51. Ne4 {[%emt 0:00:14]} Rf5 {[%emt 0:00:19]} 52. Nd6 {[%emt 0:00:10]} Rg5+ {[%emt 0:01:12]} 53. Kh3 {[%emt 0:00:31]} Rc5 {[%emt 0:00:25]} 54. b4 {[%emt 0:02:40]} Rc6 {[%emt 0:00:45]} 55. Nf7+ {[%emt 0:00:07]} Kg7 {[%emt 0:00:11]} 56. Ne5 {[%emt 0:00:20]} Rc7 {[%emt 0:00:30]} 57. Bf1 {[%emt 0:01:51]} Kf6 {[%emt 0:00:59]} 58. Nc4 {[%emt 0:00:25]} Rb7 {[%emt 0:01:20]} 59. b5 {[%emt 0:00:50]} Rb8 {[%emt 0:00:40]} 60. Bg2 {[%emt 0:00:30]} g5 {[%emt 0:00:41]} 61. Kg3 {[%emt 0:01:13]} Kg6 {[%emt 0:00:43]} 62. Be4+ {[%emt 0:01:37]} Kf6 {[%emt 0:00:13]} 63. Bc6 {[%emt 0:00:28]} Kf5 {[%emt 0:00:33]} 64. Nd6+ {[%emt 0:01:03]} Ke5 {[%emt 0:00:17]} 65. Nc4+ {[%emt 0:00:50]} Kd4 {[%emt 0:00:38]} 66. Nd6 {[%emt 0:00:22]} Rg8 {[%emt 0:00:45]} 67. Nf5+ {[%emt 0:00:51]} Ke5 {[%emt 0:00:29]} 68. Ne3 {[%emt 0:00:48]} Kd4 {[%emt 0:00:18]} 69. Nf5+ {[%emt 0:00:09]} Kc5 {[%emt 0:00:20]} 70. Ne7 {[%emt 0:01:49]} Rg7 {[%emt 0:00:06]} 71. Nf5 {[%emt 0:00:12]} Rg6 {[%emt 0:00:26]} 72. Be8 {[%emt 0:01:18]} Rf6 {[%emt 0:00:37]} 73. Ng7 {[%emt 0:00:47]} Rh6 {[%emt 0:01:12]} 74. Nxh5 {[%emt 0:01:13]} Rh8 {[%emt 0:00:37]} 75. Bf7 {[%emt 0:00:08]} Kxb5 {[%emt 0:00:24]} 76. Kg4 {[%emt 0:00:27]} Ka4 {[%emt 0:00:31]} 77. Kxg5 {[%emt 0:00:23]} b5 {[%emt 0:00:03]} 78. Ng3 {[%emt 0:00:43]} b4 {[%emt 0:00:16]} 79. Ne4 {[%emt 0:00:33]} Rb8 {[%emt 0:00:20]} 80. Nc5+ {[%emt 0:01:09]} Ka3 {[%emt 0:00:04]} 81. Nd3 {[%emt 0:01:23]} b3 {[%emt 0:00:31]} 82. Bxb3 {[%emt 0:00:13]} Kxb3 {[%emt 0:00:07]} 83. Nf4 {[%emt 0:00:25]} Kc4 {[%emt 0:00:04]} 84. Kf5 {[%emt 0:00:20]} Kd4 {[%emt 0:00:21]} 85. Ne6+ {[%emt 0:00:12]} Kd5 {[%emt 0:00:10]} 86. Nf4+ {[%emt 0:00:08]} Kd6 {[%emt 0:00:02]} 87. Ke4 {[%emt 0:00:23]} Rb4+ {[%emt 0:00:59]} 88. Ke3 {[%emt 0:00:13]} Ra4 {[%emt 0:00:12]} 89. Nd3 {[%emt 0:00:21]} Kd5 {[%emt 0:00:27]} 90. Nf4+ {[%emt 0:00:14]} Ke5 {[%emt 0:00:04]} 91. Nd3+ {[%emt 0:00:20]} Kf5 {[%emt 0:00:04]} 92. Nc5 {[%emt 0:00:26]} Rb4 {[%emt 0:01:45]} 93. Nd3 {[%emt 0:00:27]} Rc4 {[%emt 0:00:15]} 94. Nb2 {[%emt 0:00:31]} Rh4 {[%emt 0:00:47]} 95. Nd3 {[%emt 0:00:32]} Rh8 {[%emt 0:01:17]} 96. Kd4 {[%emt 0:00:31]} Re8 {[%emt 0:00:22]} 97. Nc5 {[%emt 0:00:25]} Re7 {[%emt 0:00:55]} 98. Kd5 {[%emt 0:00:25]} Ra7 {[%emt 0:01:30]} 99. Kd4 {[%emt 0:00:23]} Ra2 {[%emt 0:00:50]} 100. Kd5 {[%emt 0:00:20]} Rd2+ {[%emt 0:00:09]} 101. Kc4 {[%emt 0:00:32]} Ke5 {[%emt 0:00:47]} 102. Nd3+ {[%emt 0:00:16]} Ke4 {[%emt 0:00:14]} 103. Nc5+ {[%emt 0:00:09]} Ke3 {[%emt 0:00:07]} 104. Nb3 {[%emt 0:00:23]} Rd8 {[%emt 0:00:32]} 105. Nc5 {[%emt 0:00:23]} Rd4+ {[%emt 0:00:08]} 106. Kc3 {[%emt 0:01:29]} Rd6 {[%emt 0:01:05]} 107. Kc4 {[%emt 0:00:09]} Rd8 {[%emt 0:00:13]} 108. Kc3 {[%emt 0:00:33]} Rd4 {[%emt 0:00:15]} 109. Nb3 {[%emt 0:00:13]} Rg4 {[%emt 0:01:27]} 110. Nc5 {[%emt 0:00:13]} Rh4 {[%emt 0:00:31]} 111. Nb3 {[%emt 0:00:21]} Rh2 {[%emt 0:00:32]} 112. Nc5 {[%emt 0:00:33]} Rh5 {[%emt 0:00:16]} 113. Kc4 {[%emt 0:00:26]} Rg5 {[%emt 0:00:26]} 114. Nb3 {[%emt 0:00:11]} Ke4 {[%emt 0:00:49]} 115. Nc5+ {[%emt 0:00:15]} Ke5 {[%emt 0:00:09]} 116. Nd3+ {[%emt 0:00:11]} Kd6 {[%emt 0:00:06]} 117. Kd4 {[%emt 0:00:09]} Rg4+ {[%emt 0:00:07]} 118. Ke3 {[%emt 0:00:08]} Rh4 {[%emt 0:00:13]} 119. Nf4 {[%emt 0:00:18]} Rh8 {[%emt 0:00:36]} 120. Ke4 {[%emt 0:00:26]} Re8+ {[%emt 0:00:14]} 121. Kf5 {[%emt 0:00:24]} Re1 {[%emt 0:00:44]} 122. Kf6 {[%emt 0:00:34]} Re8 {[%emt 0:00:23]} 123. Kf5 {[%emt 0:00:06]} Re7 {[%emt 0:00:29]} 124. Kf6 {[%emt 0:00:14]} Re3 {[%emt 0:00:13]} 125. Kf5 {[%emt 0:00:07]} Re8 {[%emt 0:00:20]} 126. Ng6 {[%emt 0:00:21]} Rg8 {[%emt 0:00:20]} 127. Nf4 {[%emt 0:00:17]} Rg1 {[%emt 0:00:14]} 128. Kf6 {[%emt 0:00:08]} Rg4 {[%emt 0:00:10]} 129. Kf5 {[%emt 0:00:06]} Rg8 {[%emt 0:00:04]} 130. Ke4 {[%emt 0:00:09]} Rg5 {[%emt 0:00:13]} 131. Nd3 {[%emt 0:00:08]} Re5+ {[%emt 0:00:14]} 132. Nxe5 {[%emt 0:00:08] Kxe5+} 1/2-1/2

[Event "EYCC Open-U16 2019"]
[Site "Bratislava"]
[Date "2019.08.06"]
[Round "5.43"]
[White "Kasioumis, Vasilios"]
[Black "Darmogray, Makar"]
[Result "1-0"]
[ECO "C55"]
[WhiteElo "2015"]
[BlackElo "2004"]
[Annotator "NA"]
[PlyCount "67"]
[EventDate "2019.08.02"]
[EventType "swiss"]
[EventCountry "SVK"]
[SourceTitle "playchess.com"]
[Source "ChessBase"]
[SourceQuality "1"]
[TimeControl "40/5400+30:1800+30"]

1. e4 {[%emt 0:00:00]} e5 {[%emt 0:00:00]} 2. Nf3 {[%emt 0:00:00]} Nc6 {[%emt 0:00:00]} 3. Bc4 {[%emt 0:00:00]} Nf6 {[%emt 0:00:26]} 4. d3 {[%emt 0:00:00]} h6 {[%emt 0:00:38]} 5. c3 {[%emt 0:00:18]} d6 {[%emt 0:00:07]} 6. O-O {[%emt 0:00:51]} g5 {[%emt 0:00:10]} 7. Re1 {[%emt 0:00:24]} g4 {[%emt 0:00:07]} 8. Nfd2 {[%emt 0:06:34]} h5 {[%emt 0:00:19]} 9. Nf1 {[%emt 0:02:10]} Rg8 {[%emt 0:01:41]} 10. d4 {[%emt 0:03:44]} Rg6 {[%emt 0:04:08]} 11. b4 {[%emt 0:09:41]} h4 {[%emt 0:09:13]} 12. Na3 {[%emt 0:06:43]} Qe7 {[%emt 0:12:19]} 13. Bd3 {[%emt 0:18:56]} Nh7 {[%emt 0:14:44]} 14. Nc4 {[%emt 0:04:36]} Ng5 {[%emt 0:11:21]} 15. b5 {[%emt 0:01:12]} Nd8 {[%emt 0:12:03]} 16. Nfe3 {[%emt 0:03:43]} f6 {[%emt 0:12:04]} 17. Nf5 {[%emt 0:05:32]} Qh7 {[%emt 0:00:35]} 18. Qxg4 {[%emt 0:00:43]} h3 {[%emt 0:02:53]} 19. g3 {[%emt 0:01:41]} Nde6 {[%emt 0:01:14]} 20. Kh1 {[%emt 0:03:32]} Be7 {[%emt 0:09:05]} 21. Qe2 {[%emt 0:03:19]} Bd7 {[%emt 0:03:18]} 22. Be3 {[%emt 0:00:54]} Kf8 {[%emt 0:00:41]} 23. f4 Nf7 {[%emt 0:01:15]} 24. Nxe7 {[%emt 0:01:05]} Kxe7 {[%emt 0:00:01]} 25. f5 {[%emt 0:00:07]} Rgg8 {[%emt 0:00:23]} 26. fxe6 {[%emt 0:00:11]} Bxe6 {[%emt 0:00:01]} 27. d5 {[%emt 0:03:01]} Bg4 {[%emt 0:01:10]} 28. Qf2 {[%emt 0:00:09]} Ng5 {[%emt 0:01:07]} 29. Bxg5 {[%emt 0:00:27]} fxg5 {[%emt 0:00:41]} 30. Ne3 {[%emt 0:00:29]} Raf8 {[%emt 0:00:10]} 31. Nf5+ {[%emt 0:00:24]} Bxf5 {[%emt 0:00:08]} 32. exf5 {[%emt 0:00:05]} Rf6 {[%emt 0:00:07]} 33. Qxa7 {[%emt 0:01:22]} Rxf5 {[%emt 0:00:23]} 34. Qe3 {[%emt 0:00:54]} 1-0

[Event "EYCC Open-U16 2019"]
[Site "Bratislava"]
[Date "2019.08.06"]
[Round "5.44"]
[White "Viczencz, Peter"]
[Black "Jirousek, Jan"]
[Result "0-1"]
[ECO "D00"]
[WhiteElo "2014"]
[BlackElo "1924"]
[Annotator "NA"]
[PlyCount "60"]
[EventDate "2019.08.02"]
[EventType "swiss"]
[EventCountry "SVK"]
[SourceTitle "playchess.com"]
[Source "ChessBase"]
[SourceQuality "1"]
[TimeControl "40/5400+30:1800+30"]

1. d4 {[%emt 0:00:00]} d5 {[%emt 0:00:00]} 2. Bf4 {[%emt 0:00:00]} Nf6 {[%emt 0:00:54]} 3. e3 {[%emt 0:00:00]} c5 {[%emt 0:01:55]} 4. Nf3 {[%emt 0:00:03]} Nc6 {[%emt 0:00:46]} 5. c3 {[%emt 0:00:24]} Qb6 {[%emt 0:04:49]} 6. Qb3 {[%emt 0:01:15]} c4 {[%emt 0:00:07]} 7. Qxb6 {[%emt 0:00:14]} axb6 {[%emt 0:00:02]} 8. Nbd2 {[%emt 0:00:33]} b5 {[%emt 0:00:24]} 9. Ne5 {[%emt 0:02:41]} b4 {[%emt 0:08:25]} 10. e4 {[%emt 0:08:34]} e6 {[%emt 0:05:50]} 11. Be2 {[%emt 0:05:06]} bxc3 {[%emt 0:06:14]} 12. bxc3 {[%emt 0:00:07]} Ra3 {[%emt 0:06:56]} 13. Nb1 {[%emt 0:04:38]} Ra6 {[%emt 0:00:46]} 14. exd5 {[%emt 0:02:54]} exd5 {[%emt 0:00:10]} 15. O-O {[%emt 0:02:34]} Be7 {[%emt 0:02:27]} 16. Re1 {[%emt 0:02:15]} Nxe5 {[%emt 0:07:50]} 17. dxe5 {[%emt 0:01:33]} Nd7 {[%emt 0:06:03]} 18. Bg4 {[%emt 0:01:03]} h5 {[%emt 0:07:17]} 19. Bf3 {[%emt 0:04:53]} g5 {[%emt 0:03:43]} 20. Be3 {[%emt 0:02:43]} Nxe5 {[%emt 0:09:49]} 21. Bxd5 {[%emt 0:03:17]} Rd6 {[%emt 0:05:15]} 22. Be4 {[%emt 0:00:39]} O-O {[%emt 0:02:32]} 23. Bd4 {[%emt 0:05:12]} f6 {[%emt 0:02:57]} 24. Na3 {[%emt 0:00:57]} Be6 {[%emt 0:03:23]} 25. Nb5 {[%emt 0:05:04]} Rd7 {[%emt 0:02:10]} 26. h4 {[%emt 0:03:10]} g4 {[%emt 0:07:37]} 27. Bc2 {[%emt 0:04:14]} Bf7 {[%emt 0:01:28]} 28. Bf5 {[%emt 0:16:16]} Rd5 {[%emt 0:00:46]} 29. a4 {[%emt 0:00:07]} Nc6 {[%emt 0:01:29]} 30. Nc7 {[%emt 0:01:10]} Rxf5 {[%emt 0:00:47]} 0-1

[Event "EYCC Open-U16 2019"]
[Site "Bratislava"]
[Date "2019.08.06"]
[Round "5.45"]
[White "Stremavicius, Pijus"]
[Black "Dixa, Oskar"]
[Result "1-0"]
[ECO "E70"]
[WhiteElo "2071"]
[BlackElo "1973"]
[Annotator "NA"]
[PlyCount "139"]
[EventDate "2019.08.02"]
[EventType "swiss"]
[EventCountry "SVK"]
[SourceTitle "playchess.com"]
[Source "ChessBase"]
[SourceQuality "1"]
[TimeControl "40/5400+30:1800+30"]

1. d4 {[%emt 0:00:00]} Nf6 {[%emt 0:00:00]} 2. c4 {[%emt 0:00:00]} g6 {[%emt 0:00:00]} 3. Nc3 {[%emt 0:00:00]} Bg7 {[%emt 0:00:00]} 4. e4 {[%emt 0:00:00]} O-O {[%emt 0:00:21]} 5. Bd3 {[%emt 0:00:00]} d6 {[%emt 0:00:21]} 6. Nge2 {[%emt 0:00:06]} Nbd7 {[%emt 0:00:48]} 7. O-O {[%emt 0:00:06]} e5 {[%emt 0:02:27]} 8. d5 {[%emt 0:01:04]} a5 {[%emt 0:00:22]} 9. a3 {[%emt 0:02:42]} Nc5 {[%emt 0:03:45]} 10. Bc2 {[%emt 0:00:06]} b6 {[%emt 0:06:36]} 11. b3 {[%emt 0:03:42]} Ne8 {[%emt 0:08:12]} 12. Rb1 {[%emt 0:02:22]} f5 {[%emt 0:01:24]} 13. exf5 {[%emt 0:00:34]} Bxf5 {[%emt 0:00:32]} 14. b4 {[%emt 0:01:08]} Nd7 {[%emt 0:01:13]} 15. Ng3 {[%emt 0:02:31]} Bxc2 {[%emt 0:00:20]} 16. Qxc2 {[%emt 0:00:04]} Nef6 {[%emt 0:01:19]} 17. Bg5 {[%emt 0:05:59]} Qe7 {[%emt 0:13:36]} 18. Nce4 {[%emt 0:05:02]} h6 {[%emt 0:07:16]} 19. Bxf6 {[%emt 0:03:52]} Nxf6 {[%emt 0:01:13]} 20. f3 {[%emt 0:01:32]} Ra7 {[%emt 0:03:23]} 21. Nxf6+ {[%emt 0:05:47]} Qxf6 {[%emt 0:00:53]} 22. Ne4 {[%emt 0:00:11]} Qf4 {[%emt 0:00:13]} 23. c5 {[%emt 0:02:45]} bxc5 {[%emt 0:16:34]} 24. bxc5 {[%emt 0:00:14]} Qe3+ {[%emt 0:00:24]} 25. Qf2 {[%emt 0:01:12]} Qxf2+ {[%emt 0:01:21]} 26. Kxf2 {[%emt 0:05:45]} dxc5 {[%emt 0:02:16]} 27. Rfc1 {[%emt 0:04:36]} Rd8 {[%emt 0:02:15]} 28. Rxc5 {[%emt 0:00:09]} Bf8 {[%emt 0:00:10]} 29. Rc3 {[%emt 0:03:46]} Kf7 {[%emt 0:02:17]} 30. Rb5 {[%emt 0:02:13]} Rd7 {[%emt 0:05:20]} 31. a4 {[%emt 0:00:40]} Ra8 {[%emt 0:03:39]} 32. Rc6 {[%emt 0:00:35]} Bb4 {[%emt 0:00:49]} 33. Rb7 {[%emt 0:04:42]} Rad8 {[%emt 0:03:07]} 34. Ra7 {[%emt 0:04:30]} Be7 {[%emt 0:05:13]} 35. Rxa5 {[%emt 0:03:10]} Rxd5 {[%emt 0:00:06]} 36. Rxd5 {[%emt 0:00:08]} Rxd5 {[%emt 0:00:02]} 37. Rxc7 {[%emt 0:00:09]} Rd4 {[%emt 0:00:02]} 38. a5 {[%emt 0:02:06]} Ra4 {[%emt 0:00:17]} 39. Ra7 {[%emt 0:00:06]} Ke6 {[%emt 0:01:54]} 40. Ra6+ {[%emt 0:00:00]} Kf5 {[%emt 0:00:00]} 41. Kg3 {[%emt 0:07:59]} g5 {[%emt 0:03:00]} 42. Nc3 {[%emt 0:07:31]} Rd4 {[%emt 0:05:01]} 43. Rxh6 {[%emt 0:00:43]} Bb4 {[%emt 0:05:48]} 44. Kf2 {[%emt 0:04:40]} g4 {[%emt 0:04:57]} 45. Ne4 {[%emt 0:01:10]} Be7 {[%emt 0:03:01]} 46. a6 {[%emt 0:02:41]} gxf3 {[%emt 0:00:23]} 47. gxf3 {[%emt 0:00:22]} Ra4 {[%emt 0:00:12]} 48. Kg3 {[%emt 0:00:51]} Ra1 {[%emt 0:01:03]} 49. Rc6 {[%emt 0:02:17]} Bg5 {[%emt 0:00:41]} 50. Nxg5 {[%emt 0:01:19]} Kxg5 {[%emt 0:00:10]} 51. h4+ {[%emt 0:01:05]} Kh5 {[%emt 0:00:08]} 52. Re6 {[%emt 0:01:53]} Ra5 {[%emt 0:01:18]} 53. a7 {[%emt 0:05:26]} Rxa7 {[%emt 0:01:12]} 54. Rxe5+ {[%emt 0:00:00]} Kh6 {[%emt 0:00:25]} 55. Kg4 {[%emt 0:00:26]} Ra1 {[%emt 0:05:56]} 56. Re6+ {[%emt 0:00:07]} Kg7 {[%emt 0:00:10]} 57. f4 {[%emt 0:01:09]} Rg1+ {[%emt 0:00:22]} 58. Kf5 {[%emt 0:07:54]} Rh1 {[%emt 0:01:24]} 59. Rg6+ {[%emt 0:00:04]} Kf7 {[%emt 0:00:28]} 60. Rg4 {[%emt 0:00:14]} Rh2 {[%emt 0:02:50]} 61. Kg5 {[%emt 0:00:14]} Kg7 {[%emt 0:02:48]} 62. Rg3 {[%emt 0:00:51]} Rh1 {[%emt 0:00:51]} 63. h5 {[%emt 0:01:39]} Rh2 {[%emt 0:00:19]} 64. Ra3 {[%emt 0:02:57]} Rg2+ {[%emt 0:00:14]} 65. Kf5 {[%emt 0:00:04]} Rg1 {[%emt 0:02:43]} 66. Ra6 {[%emt 0:03:48]} Rh1 {[%emt 0:03:15]} 67. Ra7+ {[%emt 0:02:06]} Kh6 {[%emt 0:00:56]} 68. Kf6 {[%emt 0:01:24]} Rf1 {[%emt 0:01:52]} 69. f5 {[%emt 0:00:24]} Kxh5 {[%emt 0:01:06]} 70. Ra2 {[%emt 0:00:11]} 1-0

[Event "EYCC Open-U16 2019"]
[Site "Bratislava"]
[Date "2019.08.06"]
[Round "5.46"]
[White "Velkovski, Kristijan"]
[Black "Holly, Andrej"]
[Result "1/2-1/2"]
[ECO "B31"]
[WhiteElo "1953"]
[BlackElo "2046"]
[Annotator "NA"]
[PlyCount "50"]
[EventDate "2019.08.02"]
[EventType "swiss"]
[EventCountry "SVK"]
[SourceTitle "playchess.com"]
[Source "ChessBase"]
[SourceQuality "1"]
[TimeControl "40/5400+30:1800+30"]

1. e4 c5 {[%emt 0:00:00]} 2. Nf3 {[%emt 0:00:00]} Nc6 {[%emt 0:00:00]} 3. Bb5 {[%emt 0:00:00]} g6 {[%emt 0:02:05]} 4. O-O {[%emt 0:01:40]} Bg7 {[%emt 0:01:07]} 5. Re1 {[%emt 0:02:53]} e5 {[%emt 0:01:58]} 6. c3 {[%emt 0:06:29]} Nge7 {[%emt 0:03:11]} 7. d3 {[%emt 0:04:22]} O-O {[%emt 0:03:34]} 8. Be3 {[%emt 0:04:27]} d6 {[%emt 0:03:31]} 9. Nbd2 {[%emt 0:02:10]} a6 {[%emt 0:07:09]} 10. Ba4 {[%emt 0:06:51]} b5 {[%emt 0:08:07]} 11. Bc2 {[%emt 0:00:59]} Rb8 {[%emt 0:01:13]} 12. Nf1 {[%emt 0:01:03]} b4 {[%emt 0:10:23]} 13. Qd2 {[%emt 0:04:35]} Bg4 {[%emt 0:04:23]} 14. Bd1 {[%emt 0:00:15]} f5 {[%emt 0:08:25]} 15. Bh6 {[%emt 0:03:58]} f4 {[%emt 0:02:45]} 16. Bxg7 {[%emt 0:00:13]} Kxg7 {[%emt 0:00:15]} 17. h3 {[%emt 0:01:20]} Bxf3 {[%emt 0:01:53]} 18. Bxf3 {[%emt 0:00:16]} Qa5 {[%emt 0:02:29]} 19. Bd1 {[%emt 0:05:26]} bxc3 {[%emt 0:07:37]} 20. bxc3 {[%emt 0:00:19]} Qa3 {[%emt 0:01:38]} 21. Bb3 {[%emt 0:01:29]} Na5 {[%emt 0:02:36]} 22. Qc2 {[%emt 0:05:39]} Nxb3 {[%emt 0:08:25]} 23. axb3 {[%emt 0:03:14]} Qxb3 {[%emt 0:00:01]} 24. Qxb3 {[%emt 0:00:15]} Rxb3 {[%emt 0:00:01]} 25. Rxa6 {[%emt 0:00:34]} Rxc3 {[%emt 0:12:02]} 1/2-1/2